bitfinex-derivatives/quotes_BTCF0:USTF0_20250910
["timestamp","ask_amount","ask_price","bid_price","bid_amount"]
[1757515304691,0.02207,114110.0,114100.0,0.74468422]
[1757515305990,0.02207,114110.0,114100.0,0.75326138]
[1757515306494,0.02207,114110.0,114100.0,0.74468422]
[1757515306794,0.02207,114110.0,114100.0,0.57048711]
[1757515306996,0.02307,114110.0,114100.0,0.57048711]
[1757515307695,0.02407,114110.0,114100.0,0.74468422]
[1757515307896,0.02407,114110.0,114100.0,0.39629]
[1757515308087,0.02407,114110.0,114100.0,0.74468422]
[1757515308296,0.02407,114110.0,114100.0,0.57048711]
[1757515308596,0.02407,114110.0,114100.0,0.74468422]
[1757515309900,0.02407,114110.0,114100.0,0.39629]
[1757515310098,0.02407,114110.0,114100.0,0.74468422]
[1757515312602,0.002,114110.0,114100.0,1.00650703]
[1757515312902,0.002,114110.0,114100.0,1.06941307]
[1757515313293,0.40330381,114140.0,114130.0,0.03549]
[1757515313695,0.04250381,114140.0,114130.0,0.20968711]
[1757515314393,0.21670092,114140.0,114130.0,0.03549]
[1757515314594,0.21670092,114140.0,114130.0,0.20968711]
[1757515314996,0.21670092,114140.0,114130.0,0.03549]
[1757515315297,0.21670092,114140.0,114130.0,0.20968711]
[1757515315497,0.04250381,114140.0,114130.0,0.20968711]
[1757515315698,0.05050381,114140.0,114130.0,0.20968711]
[1757515318402,0.05050381,114140.0,114130.0,0.15159002]
[1757515321804,0.54090383,114140.0,114130.0,0.02171]
[1757515324602,0.54090383,114140.0,114130.0,0.03549]
[1757515324603,0.18010383,114140.0,114130.0,0.03549]
[1757515325102,0.54090383,114140.0,114130.0,0.02171]
[1757515325698,0.54090383,114140.0,114130.0,0.03549]
[1757515326196,0.54090383,114140.0,114130.0,0.02171]
[1757515327610,0.54090383,114140.0,114130.0,0.03549]
[1757515328104,0.54090383,114140.0,114130.0,0.02171]
[1757515328706,0.52047002,114140.0,114130.0,0.02171]
[1757515329800,0.88657004,114140.0,114130.0,0.02171]
[1757515330000,0.77047002,114140.0,114130.0,0.02171]
[1757515330705,0.39087,114140.0,114130.0,0.15111002]
[1757515330996,0.03007,114140.0,114130.0,0.15111002]
[1757515331801,0.03007,114140.0,114130.0,0.03501]
[1757515332207,0.02907,114140.0,114130.0,0.03501]
[1757515332416,0.02907,114140.0,114130.0,0.15111002]
[1757515332812,0.02807,114140.0,114130.0,0.15111002]
[1757515336516,0.14417002,114140.0,114130.0,0.03501]
[1757515336706,0.02807,114140.0,114130.0,0.15111002]
[1757515337711,0.02807,114140.0,114130.0,0.03501]
[1757515338014,0.02807,114140.0,114130.0,0.15111002]
[1757515340416,0.006,114140.0,114130.0,0.96561214]
[1757515340604,0.006,114140.0,114130.0,1.02829532]
[1757515340809,0.006,114140.0,114130.0,1.04417513]
[1757515341217,0.006,114140.0,114130.0,1.03736364]
[1757515342109,0.002,114140.0,114130.0,1.03736364]
[1757515342316,0.002,114140.0,114130.0,1.03836364]
[1757515342510,0.002,114140.0,114130.0,0.7185615]
[1757515342813,0.002,114140.0,114130.0,0.46265867]
[1757515343014,0.002,114140.0,114130.0,0.04877]
[1757515343015,0.13816002,114140.0,114130.0,0.04877]
[1757515343316,0.02206,114140.0,114130.0,0.40957]
[1757515343511,0.02206,114140.0,114130.0,0.58851869]
[1757515343712,0.02206,114140.0,114130.0,0.52567002]
[1757515343912,0.02206,114140.0,114130.0,0.52767002]
[1757515344112,0.02206,114140.0,114130.0,0.41157]
[1757515344416,0.02206,114140.0,114130.0,0.87413]
[1757515344617,0.02206,114140.0,114130.0,1.23493]
[1757515344804,0.51206002,114140.0,114130.0,0.03747]
[1757515345209,0.51206002,114140.0,114130.0,0.03447]
[1757515346217,0.51206002,114140.0,114130.0,0.03247]
[1757515346718,0.76206002,114140.0,114130.0,0.03247]
[1757515350914,0.76206002,114140.0,114130.0,0.01076]
[1757515351410,0.76206002,114140.0,114130.0,0.0326]
[1757515351811,0.64596,114140.0,114130.0,0.01076]
[1757515352006,0.87816004,114140.0,114130.0,0.01076]
[1757515355513,0.8981008,114140.0,114130.0,0.01076]
[1757515356022,0.89810139,114140.0,114130.0,0.01076]
[1757515358226,1.71898139,114140.0,114130.0,0.01076]
[1757515359316,1.46898139,114140.0,114130.0,0.01076]
[1757515361123,1.46814139,114140.0,114130.0,0.01076]
[1757515361823,0.64810139,114140.0,114130.0,0.01076]
[1757515362023,1.46814139,114140.0,114130.0,0.01076]
[1757515362223,1.46794139,114140.0,114130.0,0.01076]
[1757515363114,1.46762139,114140.0,114130.0,0.01076]
[1757515364222,0.41590135,114140.0,114130.0,0.03328]
[1757515364424,1.33162002,114140.0,114130.0,0.03328]
[1757515365820,1.35148687,114140.0,114130.0,0.03328]
[1757515368327,1.23538685,114140.0,114130.0,0.03328]
[1757515368626,1.46758689,114140.0,114130.0,0.01076]
[1757515368829,1.46758689,114140.0,114130.0,0.00976]
[1757515368830,1.46858689,114140.0,114130.0,0.00976]
[1757515370226,1.44872004,114140.0,114130.0,0.00976]
[1757515370629,1.44872004,114140.0,114130.0,0.00876]
[1757515370825,1.46958502,114140.0,114130.0,0.00876]
[1757515371529,1.46858502,114140.0,114130.0,0.00876]
[1757515371721,1.46958502,114140.0,114130.0,0.00876]
[1757515374226,0.65002502,114140.0,114130.0,0.00876]
[1757515374426,1.46894502,114140.0,114130.0,0.00876]
[1757515380336,1.58518402,114140.0,114130.0,0.00876]
[1757515381133,0.76626402,114140.0,114130.0,0.00876]
[1757515381334,1.58518402,114140.0,114130.0,0.00876]
[1757515382238,1.58518402,114140.0,114130.0,0.20549952]
[1757515382438,1.58518402,114140.0,114130.0,0.03128]
[1757515382643,1.58518402,114140.0,114130.0,0.00876]
[1757515383029,1.23674498,114140.0,114130.0,0.00876]
[1757515383225,1.58518402,114140.0,114130.0,0.00876]
[1757515386342,0.94048354,114140.0,114130.0,0.00876]
[1757515386534,1.58514402,114140.0,114130.0,0.00876]
[1757515396441,0.41782498,114140.0,114130.0,0.00876]
[1757515396750,1.58502402,114140.0,114130.0,0.00876]
[1757515398746,0.76626402,114140.0,114130.0,0.00876]
[1757515398941,1.58498402,114140.0,114130.0,0.00876]
[1757515399344,0.76626402,114140.0,114130.0,0.00876]
[1757515399544,1.58494402,114140.0,114130.0,0.00876]
[1757515400748,1.75916354,114140.0,114130.0,0.00876]
[1757515400952,0.38229904,114110.0,114090.0,0.15471166]
[1757515401143,1.56209904,114100.0,114090.0,0.09813867]
[1757515401748,1.56209904,114100.0,114090.0,0.08483867]
[1757515402244,0.56919952,114100.0,114090.0,0.26205819]
[1757515402452,1.4458068,114100.0,114090.0,0.10178867]
[1757515402646,1.4458068,114100.0,114090.0,0.27600819]
[1757515402841,1.62002632,114100.0,114090.0,0.09878867]
[1757515403053,1.62002632,114100.0,114090.0,0.10478867]
[1757515403254,1.62002632,114100.0,114090.0,0.04194]
[1757515403854,1.62002632,114100.0,114090.0,0.03994]
[1757515404056,1.62002632,114100.0,114090.0,0.04294]
[1757515404554,1.64174864,114100.0,114090.0,0.02899]
[1757515406050,1.64174864,114100.0,114090.0,0.02199]
[1757515406250,1.64174864,114100.0,114090.0,0.02699]
[1757515407049,0.4746696,114100.0,114090.0,0.02699]
[1757515407250,0.63578912,114100.0,114090.0,0.21515952]
[1757515407465,1.45438912,114100.0,114090.0,0.21515952]
[1757515407752,0.63578912,114100.0,114090.0,0.21515952]
[1757515407955,1.45438912,114100.0,114090.0,0.21515952]
[1757515408159,1.45438912,114100.0,114090.0,0.04094]
[1757515408352,1.62860864,114100.0,114090.0,0.04094]
[1757515408961,0.81000864,114100.0,114090.0,0.04094]
[1757515410056,0.81000864,114100.0,114090.0,0.21515952]
[1757515410852,0.4615696,114100.0,114090.0,0.21515952]
[1757515411062,0.63578912,114100.0,114090.0,0.21515952]
[1757515411757,0.63578912,114100.0,114090.0,0.04094]
[1757515412056,0.63578912,114100.0,114090.0,0.21515952]
[1757515412261,0.38188,114100.0,114090.0,0.21515952]
[1757515412458,0.56497758,114100.0,114090.0,0.21515952]
[1757515413057,0.56497758,114100.0,114090.0,0.04094]
[1757515413259,0.38188,114100.0,114090.0,0.63937904]
[1757515413460,0.02108,114110.0,114100.0,0.03594]
[1757515413656,0.19529952,114110.0,114100.0,0.21015952]
[1757515414969,0.55609952,114110.0,114100.0,0.21115952]
[1757515415662,0.3608,114110.0,114100.0,0.03694]
[1757515415962,0.46076274,114120.0,114110.0,0.03594]
[1757515416162,0.63498226,114120.0,114110.0,0.21015952]
[1757515416754,0.02108,114120.0,114110.0,0.21015952]
[1757515416960,0.02108,114120.0,114110.0,0.27300819]
[1757515417358,0.38125814,114130.0,114110.0,0.63380819]
[1757515417663,0.04153814,114130.0,114120.0,0.44722771]
[1757515418059,0.04153814,114130.0,114120.0,0.69722771]
[1757515418766,0.04153814,114130.0,114120.0,0.63437904]
[1757515419263,0.04153814,114130.0,114120.0,0.38437904]
[1757515419457,0.04253814,114130.0,114120.0,0.38437904]
[1757515419860,0.04153814,114130.0,114120.0,0.38437904]
[1757515420167,0.04253814,114130.0,114120.0,0.38437904]
[1757515420465,0.04253814,114130.0,114120.0,0.21015952]
[1757515420667,0.40333814,114130.0,114120.0,0.21015952]
[1757515421067,0.40233814,114130.0,114120.0,0.21015952]
[1757515421371,0.04153814,114130.0,114120.0,0.21015952]
[1757515422760,0.21575766,114130.0,114120.0,0.21015952]
[1757515424167,0.04153814,114130.0,114120.0,0.21015952]
[1757515424561,0.21575766,114130.0,114120.0,0.21015952]
[1757515425163,0.02108,114130.0,114120.0,0.21015952]
[1757515425366,0.19529952,114130.0,114120.0,0.21015952]
[1757515426158,0.20817952,114130.0,114120.0,0.0351]
[1757515426469,0.03396,114130.0,114120.0,0.0351]
[1757515426667,0.20817952,114130.0,114120.0,0.0351]
[1757515427266,0.20817952,114130.0,114120.0,0.20931952]
[1757515427471,0.19529952,114130.0,114120.0,0.20931952]
[1757515429373,0.02108,114130.0,114120.0,0.20931952]
[1757515429566,0.19529952,114130.0,114120.0,0.20931952]
[1757515429768,0.19529952,114130.0,114120.0,0.0351]
[1757515429981,0.19529952,114130.0,114120.0,0.20931952]
[1757515431873,0.19529952,114130.0,114120.0,0.0351]
[1757515432275,0.20817952,114130.0,114120.0,0.0351]
[1757515432477,0.56897952,114130.0,114120.0,0.0351]
[1757515432667,0.01288,114120.0,114110.0,0.02317]
[1757515432872,0.20972952,114120.0,114110.0,0.02317]
[1757515433068,0.38394904,114120.0,114110.0,0.02317]
[1757515433578,0.20972952,114120.0,114110.0,0.19738952]
[1757515433774,0.03551,114120.0,114110.0,0.21049952]
[1757515433978,0.20972952,114120.0,114110.0,0.21149952]
[1757515434380,0.20972952,114120.0,114110.0,0.21249952]
[1757515434880,0.38394904,114120.0,114110.0,0.03828]
[1757515435080,0.38394904,114120.0,114110.0,0.02517]
[1757515436073,0.02263,114120.0,114110.0,0.03828]
[1757515436273,0.19684952,114120.0,114110.0,0.21249952]
[1757515438376,0.02263,114120.0,114110.0,0.21249952]
[1757515438681,0.19684952,114120.0,114110.0,0.21249952]
[1757515439983,0.02263,114120.0,114110.0,0.21249952]
[1757515440184,0.19684952,114120.0,114110.0,0.21249952]
[1757515441586,0.02263,114120.0,114110.0,0.21249952]
[1757515442475,0.02263,114120.0,114110.0,0.15441269]
[1757515442676,0.49956269,114130.0,114120.0,0.03628]
[1757515444685,0.38343,114130.0,114120.0,0.15241269]
[1757515445386,0.49956269,114130.0,114120.0,0.03628]
[1757515445981,0.02263,114130.0,114120.0,0.15241269]
[1757515446283,0.02263,114130.0,114120.0,0.21526136]
[1757515447677,0.43850383,114140.0,114120.0,0.33139405]
[1757515447880,0.38343,114140.0,114130.0,0.21526136]
[1757515448783,0.3608,114140.0,114130.0,0.21526136]
[1757515448984,0.38407,114150.0,114140.0,0.0359]
[1757515449189,0.38407,114150.0,114140.0,0.21491812]
[1757515449582,0.02327,114150.0,114140.0,0.21491812]
[1757515450086,0.02369,114160.0,114150.0,0.0359]
[1757515450287,0.02369,114160.0,114150.0,0.21487786]
[1757515450684,0.38449,114160.0,114150.0,0.15203269]
[1757515451085,0.02369,114160.0,114150.0,0.15203269]
[1757515451384,0.38449,114160.0,114150.0,0.15203269]
[1757515451588,0.38449,114160.0,114150.0,0.0359]
[1757515452492,0.39049,114160.0,114150.0,0.0359]
[1757515457790,0.39049,114160.0,114150.0,0.15203269]
[1757515458187,0.39049,114160.0,114150.0,0.02281]
[1757515458188,0.51943269,114160.0,114150.0,0.02281]
[1757515458492,0.4033,114160.0,114150.0,0.02281]
[1757515458692,0.51943269,114160.0,114150.0,0.02281]
[1757515459694,0.63556538,114160.0,114150.0,0.02281]
[1757515460797,0.4033,114160.0,114150.0,0.02281]
[1757515460998,0.51943269,114160.0,114150.0,0.02281]
[1757515461193,0.03608,114150.0,114140.0,0.05371993]
[1757515461495,0.03608,114150.0,114140.0,0.04062993]
[1757515461496,0.15221269,114150.0,114140.0,0.04062993]
[1757515461888,0.15221269,114150.0,114140.0,0.02281]
[1757515462090,0.51301269,114150.0,114140.0,0.02281]
[1757515462397,0.51501269,114150.0,114140.0,0.02281]
[1757515463500,0.51701269,114150.0,114140.0,0.02281]
[1757515469015,0.40088,114150.0,114140.0,0.02281]
[1757515469207,0.40088,114150.0,114140.0,0.0359]
[1757515469510,0.51701269,114150.0,114140.0,0.0359]
[1757515469809,0.51701269,114150.0,114140.0,0.02281]
[1757515473912,0.40088,114150.0,114140.0,0.02281]
[1757515474116,0.51701269,114150.0,114140.0,0.02273]
[1757515474315,0.38807,114150.0,114140.0,0.15195269]
[1757515475614,0.50420269,114150.0,114140.0,0.15195269]
[1757515477212,0.38807,114150.0,114140.0,0.15195269]
[1757515478715,0.38807,114150.0,114140.0,0.03582]
[1757515478908,0.51724269,114150.0,114140.0,0.03582]
[1757515481819,0.50420269,114150.0,114140.0,0.03582]
[1757515484022,0.38807,114150.0,114140.0,0.03582]
[1757515484225,0.50420269,114150.0,114140.0,0.03582]
[1757515485322,0.50420269,114150.0,114140.0,0.15195269]
[1757515487321,0.51724269,114150.0,114140.0,0.13886269]
[1757515487516,0.51724269,114150.0,114140.0,0.20170786]
[1757515488226,0.51724269,114150.0,114140.0,0.08557517]
[1757515488619,0.51724269,114150.0,114140.0,0.09826517]
[1757515489622,0.51524269,114150.0,114140.0,0.09826517]
[1757515490829,0.51524269,114150.0,114140.0,0.08557517]
[1757515491019,0.51324269,114150.0,114140.0,0.08557517]
[1757515492830,0.51324269,114150.0,114140.0,0.09826517]
[1757515494530,0.50020269,114150.0,114140.0,0.21439786]
[1757515495829,0.50020269,114150.0,114140.0,0.09826517]
[1757515497332,0.38407,114150.0,114140.0,0.09826517]
[1757515497628,0.50020269,114150.0,114140.0,0.09826517]
[1757515497827,0.38407,114150.0,114140.0,0.21439786]
[1757515498032,0.02327,114150.0,114140.0,0.58053055]
[1757515498328,0.02327,114150.0,114140.0,0.46439786]
[1757515498832,0.38407,114150.0,114140.0,0.34826517]
[1757515499021,0.38407,114150.0,114140.0,0.46439786]
[1757515499217,0.51324269,114150.0,114140.0,0.09826517]
[1757515499422,0.51324269,114150.0,114140.0,0.08557517]
[1757515500932,0.39711,114150.0,114140.0,0.08557517]
[1757515501334,0.51324269,114150.0,114140.0,0.08557517]
[1757515503125,0.39711,114150.0,114140.0,0.08557517]
[1757515503329,0.51324269,114150.0,114140.0,0.09826517]
[1757515503843,0.38407,114150.0,114140.0,0.21439786]
[1757515504237,0.02327,114150.0,114140.0,0.58053055]
[1757515504432,0.02327,114150.0,114140.0,0.6335644]
[1757515505634,0.02209,114160.0,114150.0,0.03381]
[1757515505834,0.02209,114160.0,114150.0,0.80573336]
[1757515506032,0.00042,114160.0,114150.0,0.9927544]
[1757515506236,0.00042,114160.0,114150.0,1.07131739]
[1757515506936,0.00142,114160.0,114150.0,1.07131739]
[1757515507338,0.00142,114160.0,114150.0,0.9927544]
[1757515507538,0.02309,114160.0,114150.0,1.2747222]
[1757515508238,0.02309,114160.0,114150.0,1.2746822]
[1757515508536,0.02309,114160.0,114150.0,1.33757544]
[1757515508934,0.02309,114160.0,114150.0,0.52077544]
[1757515509233,0.9950744,114160.0,114150.0,0.02112]
[1757515509436,0.01281,114150.0,114140.0,0.36633324]
[1757515509626,0.5709422,114150.0,114140.0,0.54040544]
[1757515510532,0.5709422,114150.0,114140.0,0.35364324]
[1757515510837,0.5709422,114150.0,114140.0,0.52771544]
[1757515511037,0.39687,114150.0,114140.0,0.54047544]
[1757515511235,0.5709422,114150.0,114140.0,0.54047544]
[1757515513145,0.5709422,114150.0,114140.0,0.36640324]
[1757515513441,0.5709422,114150.0,114140.0,0.54047544]
[1757515514242,0.39687,114150.0,114140.0,0.54047544]
[1757515514444,0.5709422,114150.0,114140.0,0.27137544]
[1757515515339,0.5709422,114150.0,114140.0,0.2084822]
[1757515516350,0.5709422,114150.0,114140.0,0.03441]
[1757515516542,0.5709422,114150.0,114140.0,0.2084822]
[1757515518247,0.5709422,114150.0,114140.0,0.2122822]
[1757515518648,0.5709422,114150.0,114140.0,0.27517544]
[1757515520953,0.5709422,114150.0,114140.0,0.10110324]
[1757515521248,0.5581322,114150.0,114140.0,0.27517544]
[1757515521449,0.38406,114150.0,114140.0,0.27517544]
[1757515521639,0.5581322,114150.0,114140.0,0.27517544]
[1757515522448,0.38406,114150.0,114140.0,0.44924764]
[1757515522652,0.5581322,114150.0,114140.0,0.44924764]
[1757515522842,0.5581322,114150.0,114140.0,0.27517544]
[1757515524953,0.5581322,114150.0,114140.0,0.10110324]
[1757515525252,0.5581322,114150.0,114140.0,0.27517544]
[1757515525952,0.5581322,114150.0,114140.0,0.10110324]
[1757515526150,0.5581322,114150.0,114140.0,0.27517544]
[1757515528556,0.5581322,114150.0,114140.0,0.2122822]
[1757515532053,0.5581322,114150.0,114140.0,0.27517544]
[1757515533663,0.5581322,114150.0,114140.0,0.0038]
[1757515533664,0.9950144,114150.0,114140.0,0.0038]
[1757515533851,0.9950144,114150.0,114140.0,0.02545]
[1757515534253,1.8112944,114150.0,114140.0,0.02545]
[1757515534451,1.8112544,114150.0,114140.0,0.02545]
[1757515534652,1.6371822,114150.0,114140.0,0.02545]
[1757515534851,0.8209422,114150.0,114140.0,0.02545]
[1757515535056,1.6371822,114150.0,114140.0,0.02545]
[1757515535752,1.46311,114150.0,114140.0,0.02545]
[1757515535958,1.6371822,114150.0,114140.0,0.02545]
[1757515537352,1.8112544,114150.0,114140.0,0.02545]
[1757515539264,0.7450144,114150.0,114140.0,0.02706]
[1757515539562,1.5611744,114150.0,114140.0,0.02706]
[1757515540552,1.5611744,114150.0,114140.0,0.0038]
[1757515541052,1.58124244,114150.0,114140.0,0.0038]
[1757515541261,1.5611744,114150.0,114140.0,0.0038]
[1757515541461,1.58123947,114150.0,114140.0,0.0038]
[1757515541658,0.03238,114130.0,114120.0,0.06289324]
[1757515541958,1.5574444,114130.0,114110.0,0.09308238]
[1757515542154,0.3826244,114120.0,114110.0,0.11634238]
[1757515542666,0.39528,114120.0,114110.0,0.11634238]
[1757515542963,0.7434244,114120.0,114110.0,0.11634238]
[1757515543166,0.7434244,114120.0,114110.0,0.04068914]
[1757515543565,0.7434244,114120.0,114110.0,0.02326]
[1757515543757,0.7434244,114120.0,114110.0,0.02426]
[1757515544660,0.7434244,114120.0,114110.0,0.02526]
[1757515545663,0.81246771,114120.0,114110.0,0.02526]
[1757515546273,0.81246771,114120.0,114110.0,0.002]
[1757515547358,0.47293331,114120.0,114110.0,0.02526]
[1757515547558,0.82107771,114120.0,114110.0,0.002]
[1757515550968,0.03425,114110.0,114100.0,0.00499]
[1757515551167,1.5592344,114110.0,114100.0,0.00499]
[1757515552070,1.5592344,114110.0,114100.0,0.00699]
[1757515552957,1.82942581,114110.0,114100.0,0.00699]
[1757515553567,1.01338581,114110.0,114100.0,0.03025]
[1757515553760,1.82938581,114110.0,114100.0,0.03025]
[1757515553961,1.82938581,114110.0,114100.0,0.00499]
[1757515554161,1.82938581,114110.0,114100.0,0.00799]
[1757515554565,1.82938581,114110.0,114100.0,0.00599]
[1757515554566,1.82942581,114110.0,114100.0,0.00599]
[1757515554763,1.01338581,114110.0,114100.0,0.00699]
[1757515554968,1.65531361,114110.0,114100.0,0.03025]
[1757515555168,1.82938581,114110.0,114100.0,0.03025]
[1757515555372,1.01338581,114110.0,114100.0,0.03025]
[1757515555872,1.82938581,114110.0,114100.0,0.03025]
[1757515556167,1.82938581,114110.0,114100.0,0.00699]
[1757515557571,1.01338581,114110.0,114100.0,0.00699]
[1757515557771,1.82942581,114110.0,114100.0,0.00699]
[1757515558065,1.01338581,114110.0,114100.0,0.00699]
[1757515558270,1.01338581,114110.0,114100.0,0.03025]
[1757515558571,1.82938581,114110.0,114100.0,0.03025]
[1757515558868,1.82938581,114110.0,114100.0,0.02526]
[1757515559070,1.82938581,114110.0,114100.0,0.002]
[1757515560660,1.40527361,114110.0,114100.0,0.02526]
[1757515561061,0.40243141,114110.0,114100.0,0.28857]
[1757515561275,1.39242361,114110.0,114100.0,0.28857]
[1757515561862,1.40523361,114110.0,114100.0,0.28857]
[1757515562064,1.40523361,114110.0,114100.0,0.27526]
[1757515563673,1.39242361,114110.0,114100.0,0.28857]
[1757515565472,1.21835141,114110.0,114100.0,0.28857]
[1757515565668,1.39242361,114110.0,114100.0,0.28857]
[1757515566375,1.33453512,114110.0,114100.0,0.28857]
[1757515568273,1.21835141,114110.0,114100.0,0.28857]
[1757515568573,1.33453512,114110.0,114100.0,0.28857]
[1757515568776,1.33437512,114110.0,114100.0,0.28857]
[1757515569167,0.40243141,114110.0,114100.0,0.40475371]
[1757515569366,0.51861512,114110.0,114100.0,0.28857]
[1757515570463,0.53142512,114110.0,114100.0,0.02526]
[1757515570970,0.89760883,114110.0,114100.0,0.002]
[1757515571375,0.91768086,114110.0,114100.0,0.002]
[1757515571676,0.68531344,114110.0,114100.0,0.002]
[1757515571973,0.91768086,114110.0,114100.0,0.002]
[1757515576174,1.03386457,114110.0,114100.0,0.002]
[1757515576380,0.03145,114100.0,114090.0,0.00499]
[1757515576678,0.64468945,114100.0,114090.0,0.00499]
[1757515576870,1.46028945,114100.0,114090.0,0.00499]
[1757515577271,1.22792203,114100.0,114090.0,0.00499]
[1757515577478,1.46028945,114100.0,114090.0,0.00499]
[1757515578179,1.46028945,114100.0,114090.0,0.00699]
[1757515578375,1.46032945,114100.0,114090.0,0.00699]
[1757515578882,1.46032945,114100.0,114090.0,0.00799]
[1757515579179,1.46024945,114100.0,114090.0,0.00799]
[1757515579882,0.64468945,114100.0,114090.0,0.00799]
[1757515580078,1.33516574,114100.0,114090.0,0.04483]
[1757515580384,1.45134945,114100.0,114090.0,0.04483]
[1757515580682,1.46028945,114100.0,114090.0,0.03086]
[1757515581984,0.64468945,114100.0,114090.0,0.03086]
[1757515582280,1.46024945,114100.0,114090.0,0.03086]
[1757515585485,0.64468945,114100.0,114090.0,0.03086]
[1757515585783,1.46012945,114100.0,114090.0,0.03086]
[1757515588471,1.46012945,114100.0,114090.0,0.02587]
[1757515588984,1.46012945,114100.0,114090.0,0.003]
[1757515589686,1.46012945,114100.0,114090.0,0.03086]
[1757515590586,1.46012945,114100.0,114090.0,0.00799]
[1757515591482,1.46012945,114100.0,114090.0,0.03086]
[1757515591989,1.46012945,114100.0,114090.0,0.00799]
[1757515592188,1.44005742,114100.0,114090.0,0.00799]
[1757515592487,1.46012976,114100.0,114090.0,0.00799]
[1757515593087,1.22760234,114100.0,114090.0,0.00799]
[1757515593388,1.43989742,114100.0,114090.0,0.03086]
[1757515593588,1.43095742,114100.0,114090.0,0.04483]
[1757515593887,1.43095742,114100.0,114090.0,0.03086]
[1757515593888,1.43989742,114100.0,114090.0,0.03086]
[1757515595278,1.20753,114100.0,114090.0,0.03086]
[1757515595480,1.43989742,114100.0,114090.0,0.03086]
[1757515596385,1.43989742,114100.0,114090.0,0.00799]
[1757515600285,1.45998532,114100.0,114090.0,0.00799]
[1757515600790,0.64470532,114100.0,114090.0,0.00799]
[1757515600995,1.45982532,114100.0,114090.0,0.00799]
[1757515601591,0.64470532,114100.0,114090.0,0.00799]
[1757515601893,1.45978532,114100.0,114090.0,0.00799]
[1757515604396,0.64470532,114100.0,114090.0,0.00799]
[1757515604596,1.45970532,114100.0,114090.0,0.02971]
[1757515604895,1.45970532,114100.0,114090.0,0.00799]
[1757515605297,0.64470532,114100.0,114090.0,0.00799]
[1757515605595,1.45966532,114100.0,114090.0,0.00799]
[1757515609380,1.57584903,114100.0,114090.0,0.00799]
[1757515609585,1.45966532,114100.0,114090.0,0.00799]
[1757515609785,0.0449,114090.0,114070.0,0.06311976]
[1757515609985,1.88499113,114080.0,114060.0,0.01294]
[1757515610190,0.34855113,114060.0,114050.0,0.01294]
[1757515610392,1.54427903,114060.0,114050.0,0.01294]
[1757515611889,1.54427903,114060.0,114050.0,0.01394]
[1757515612199,1.59272379,114060.0,114050.0,0.01394]
[1757515612406,0.77788379,114060.0,114050.0,0.01394]
[1757515612696,1.61423368,114060.0,114050.0,0.01394]
[1757515612893,0.45080255,114060.0,114050.0,0.03566]
[1757515613100,1.47654008,114060.0,114050.0,0.03566]
[1757515613293,1.48712407,114060.0,114050.0,0.03566]
[1757515614803,1.48712407,114060.0,114050.0,0.01394]
[1757515614990,1.60326778,114060.0,114050.0,0.01394]
[1757515615390,0.78846778,114060.0,114050.0,0.01394]
[1757515615591,1.48712407,114060.0,114050.0,0.01394]
[1757515615992,1.60330778,114060.0,114050.0,0.01394]
[1757515616599,0.78846778,114060.0,114050.0,0.01394]
[1757515616798,1.60330778,114060.0,114050.0,0.01394]
[1757515617702,0.78846778,114060.0,114050.0,0.01394]
[1757515617898,0.67228407,114060.0,114050.0,0.03566]
[1757515618100,1.48708407,114060.0,114050.0,0.03566]
[1757515618296,0.67228407,114060.0,114050.0,0.03566]
[1757515618496,1.48712407,114060.0,114050.0,0.03566]
[1757515619006,1.48712407,114060.0,114050.0,0.01394]
[1757515620500,1.60326778,114060.0,114050.0,0.01394]
[1757515620805,0.67228407,114060.0,114050.0,0.01394]
[1757515620997,1.48708407,114060.0,114050.0,0.01394]
[1757515621198,0.67228407,114060.0,114050.0,0.03566]
[1757515621399,1.48708407,114060.0,114050.0,0.03566]
[1757515622399,1.48704407,114060.0,114050.0,0.03566]
[1757515622998,1.48704407,114060.0,114050.0,0.01394]
[1757515624300,1.48708407,114060.0,114050.0,0.03566]
[1757515625704,0.67228407,114060.0,114050.0,0.03566]
[1757515625907,1.48704407,114060.0,114050.0,0.03566]
[1757515628001,1.48704407,114060.0,114050.0,0.01394]
[1757515628307,1.60362365,114060.0,114050.0,0.01394]
[1757515628507,0.78886365,114060.0,114050.0,0.01394]
[1757515628706,1.62541665,114060.0,114050.0,0.01394]
[1757515629201,1.79989015,114060.0,114050.0,0.01394]
[1757515630910,1.79989015,114060.0,114050.0,0.001]
[1757515631113,2.04989015,114060.0,114040.0,0.01294]
[1757515631309,0.709747,114050.0,114040.0,0.01294]
[1757515631509,0.73162,114050.0,114040.0,0.01294]
[1757515632310,0.382673,114050.0,114040.0,0.01294]
[1757515632512,0.7524223,114050.0,114040.0,0.01394]
[1757515632905,0.7524223,114050.0,114040.0,0.03605]
[1757515633208,0.7524223,114050.0,114040.0,0.01394]
[1757515634015,0.7534223,114050.0,114040.0,0.01394]
[1757515635013,1.5680623,114050.0,114040.0,0.001]
[1757515635318,1.7425358,114050.0,114040.0,0.001]
[1757515635508,1.5680623,114050.0,114040.0,0.001]
[1757515635814,1.9925358,114050.0,114030.0,0.01294]
[1757515636117,0.8842205,114040.0,114030.0,0.01294]
[1757515636322,0.73162,114040.0,114030.0,0.01294]
[1757515636521,0.382673,114040.0,114030.0,0.01294]
[1757515636726,1.5463,114040.0,114030.0,0.03505]
[1757515637122,1.5463,114040.0,114030.0,0.01294]
[1757515637321,1.7207735,114040.0,114030.0,0.01296]
[1757515638823,1.7207735,114040.0,114030.0,0.01396]
[1757515639323,1.76787043,114040.0,114030.0,0.01396]
[1757515639529,1.7207735,114040.0,114030.0,0.001]
[1757515639924,1.9707735,114040.0,114030.0,0.001]
[1757515640121,1.9707735,114040.0,114020.0,0.02205082]
[1757515640122,0.5234205,114030.0,114020.0,0.00911082]
[1757515640322,0.95319043,114030.0,114020.0,0.00811082]
[1757515640523,0.95319043,114030.0,114010.0,0.01331085]
[1757515640723,1.7090205,114020.0,114010.0,0.01331085]
[1757515640923,1.7308935,114020.0,114010.0,0.01331085]
[1757515641124,1.7311335,114020.0,114010.0,0.01331085]
[1757515641321,1.7311335,114020.0,114010.0,0.00035085]
[1757515641520,1.75146136,114020.0,114000.0,0.00035088]
[1757515641827,0.709747,114010.0,114000.0,0.01331088]
[1757515642027,1.55778,114010.0,114000.0,0.01331088]
[1757515642428,1.55774,114010.0,114000.0,0.01331088]
[1757515642827,0.73162,114010.0,114000.0,0.01331088]